[Event "Early-Titled-Tuesday-Blitz-March-12-2024"]
[Site "Chess.com"]
[Date "2024.03.12"]
[Round "11"]
[White "MaxLeto"]
[Black "WilsonPalencia21"]
[Result "1-0"]
[WhiteElo "2504"]
[BlackElo "2553"]
[TimeControl "180+1"]
[EndTime "10:04:19 PDT"]
[Termination "MaxLeto won by resignation"]

1. a3 {[%clk 0:03:00.9]} 1... g6 {[%clk 0:02:47.5]} 2. b3 {[%clk 0:03:01.8]}
2... Bg7 {[%clk 0:02:47.7]} 3. c3 {[%clk 0:03:02.7]} 3... d6 {[%clk 0:02:47.4]}
4. d3 {[%clk 0:02:56.8]} 4... Nc6 {[%clk 0:02:46.9]} 5. e3 {[%clk 0:02:57.4]}
5... e5 {[%clk 0:02:46.9]} 6. f3 {[%clk 0:02:57.9]} 6... Nge7 {[%clk 0:02:47]}
7. g3 {[%clk 0:02:58.5]} 7... h5 {[%clk 0:02:46.7]} 8. h3 {[%clk 0:02:58.8]}
8... d5 {[%clk 0:02:46.7]} 9. Ra2 {[%clk 0:02:55.7]} 9... Nf5 {[%clk 0:02:46.7]}
10. Ne2 {[%clk 0:02:51]} 10... Nd6 {[%clk 0:02:41.4]} 11. Bg2 {[%clk 0:02:45.7]}
11... a5 {[%clk 0:02:36.7]} 12. Nd2 {[%clk 0:02:38.9]} 12... Be6 {[%clk
0:02:36.1]} 13. Rc2 {[%clk 0:02:35.4]} 13... Bh6 {[%clk 0:02:30.3]} 14. Nf1
{[%clk 0:02:28]} 14... e4 {[%clk 0:02:28.8]} 15. Nf4 {[%clk 0:02:14.5]} 15...
Bxf4 {[%clk 0:02:23.1]} 16. exf4 {[%clk 0:02:12.3]} 16... exd3 {[%clk
0:02:23.2]} 17. Qxd3 {[%clk 0:02:09.1]} 17... Bf5 {[%clk 0:02:22.6]} 18. Re2+
{[%clk 0:02:06.2]} 18... Kd7 {[%clk 0:02:20.5]} 19. Qxd5 {[%clk 0:02:03.9]}
19... Qf6 {[%clk 0:02:14.8]} 20. Bb2 {[%clk 0:02:00.6]} 20... Rae8 {[%clk
0:02:10.3]} 21. Ne3 {[%clk 0:02:00.5]} 21... h4 {[%clk 0:02:02.6]} 22. c4 {[%clk
0:01:55]} 22... Qe7 {[%clk 0:01:46.8]} 23. Bxh8 {[%clk 0:01:50.1]} 23... Be6
{[%clk 0:00:50.3]} 24. Qd3 {[%clk 0:01:31.5]} 24... Rxh8 {[%clk 0:00:46.9]} 25.
c5 {[%clk 0:01:29.8]} 25... Qf6 {[%clk 0:00:38.5]} 26. g4 {[%clk 0:01:05.1]}
26... Nd4 {[%clk 0:00:37.2]} 27. Rd2 {[%clk 0:00:50.3]} 27... Nxb3 {[%clk
0:00:35]} 28. cxd6 {[%clk 0:00:47.6]} 28... Nxd2 {[%clk 0:00:34.5]} 29. dxc7+
{[%clk 0:00:46.5]} 29... Kc8 {[%clk 0:00:33.4]} 30. Qxd2 {[%clk 0:00:45.5]}
30... Qxf4 {[%clk 0:00:33.2]} 31. Ke2 {[%clk 0:00:36.9]} 31... Re8 {[%clk
0:00:32.1]} 32. Re1 {[%clk 0:00:35.3]} 32... Qg3 {[%clk 0:00:28.2]} 33. Kf1
{[%clk 0:00:33.1]} 33... Kxc7 {[%clk 0:00:23.2]} 34. Nd5+ {[%clk 0:00:27]} 34...
Kb8 {[%clk 0:00:19.9]} 35. Qxa5 {[%clk 0:00:24.1]} 35... Rc8 {[%clk 0:00:18.2]}
36. Nb4 {[%clk 0:00:16]} 36... Qd6 {[%clk 0:00:17.1]} 37. Qe5 {[%clk 0:00:15.6]}
37... Bc4+ {[%clk 0:00:16.4]} 38. Kf2 {[%clk 0:00:14.7]} 38... Qxe5 {[%clk
0:00:15.6]} 39. Rxe5 {[%clk 0:00:15.6]} 39... Be6 {[%clk 0:00:15.4]} 40. Re3
{[%clk 0:00:14.6]} 40... Rc1 {[%clk 0:00:15.3]} 41. f4 {[%clk 0:00:14.8]} 41...
Rb1 {[%clk 0:00:13.5]} 42. Nd5 {[%clk 0:00:14.6]} 42... Rb2+ {[%clk 0:00:13.1]}
43. Kg1 {[%clk 0:00:13.9]} 43... Rxg2+ {[%clk 0:00:12.4]} 44. Kxg2 {[%clk
0:00:14.5]} 44... Bxd5+ {[%clk 0:00:13.3]} 45. Kf2 {[%clk 0:00:15.2]} 45... Kc7
{[%clk 0:00:13.7]} 46. Re8 {[%clk 0:00:14.8]} 46... Kd6 {[%clk 0:00:14.4]} 47.
Rh8 {[%clk 0:00:15.1]} 47... Kc5 {[%clk 0:00:13.1]} 48. Rxh4 {[%clk 0:00:15.1]}
48... Kc4 {[%clk 0:00:13.8]} 49. Rh8 {[%clk 0:00:15.7]} 49... Kb3 {[%clk
0:00:14.1]} 50. Ra8 {[%clk 0:00:16.4]} 50... Bc6 {[%clk 0:00:14]} 51. h4 {[%clk
0:00:14.2]} 51... Ba4 {[%clk 0:00:13.6]} 52. Ra7 {[%clk 0:00:13.5]} 52... Bc6
{[%clk 0:00:11.1]} 53. h5 {[%clk 0:00:12.5]} 53... gxh5 {[%clk 0:00:11.6]} 54.
gxh5 {[%clk 0:00:13.4]} 54... Kc4 {[%clk 0:00:11.9]} 55. Ke3 {[%clk 0:00:13.1]}
55... Kd5 {[%clk 0:00:11.9]} 56. h6 {[%clk 0:00:13.1]} 56... Kc5 {[%clk
0:00:09.7]} 57. h7 {[%clk 0:00:13.2]} 1-0

[Event "Early-Titled-Tuesday-Blitz-March-12-2024"]
[Site "Chess.com"]
[Date "2024.03.12"]
[Round "11"]
[White "Byniolus"]
[Black "Winner_7777"]
[Result "1-0"]
[WhiteElo "2817"]
[BlackElo "2596"]
[TimeControl "180+1"]
[EndTime "10:04:20 PDT"]
[Termination "Byniolus won on time"]

1. d4 {[%clk 0:02:56.3]} 1... d5 {[%clk 0:03:00.1]} 2. Nf3 {[%clk 0:02:56.1]}
2... e6 {[%clk 0:03:00.4]} 3. Bf4 {[%clk 0:02:55.4]} 3... Nf6 {[%clk 0:03:00.9]}
4. e3 {[%clk 0:02:55.8]} 4... Bd6 {[%clk 0:03:01.5]} 5. Bg3 {[%clk 0:02:56]}
5... O-O {[%clk 0:03:01.9]} 6. Nbd2 {[%clk 0:02:56.5]} 6... c5 {[%clk
0:03:02.6]} 7. c3 {[%clk 0:02:56.9]} 7... Nc6 {[%clk 0:03:03]} 8. Bd3 {[%clk
0:02:56.7]} 8... b6 {[%clk 0:03:03.4]} 9. Ne5 {[%clk 0:02:56.8]} 9... Bb7 {[%clk
0:03:03.5]} 10. f4 {[%clk 0:02:57.2]} 10... Ne7 {[%clk 0:03:03.9]} 11. Qb1
{[%clk 0:02:57.1]} 11... g6 {[%clk 0:02:38.8]} 12. Bf2 {[%clk 0:02:56.6]} 12...
cxd4 {[%clk 0:02:26.1]} 13. exd4 {[%clk 0:02:56.2]} 13... a5 {[%clk 0:02:26.8]}
14. O-O {[%clk 0:02:51.5]} 14... Nf5 {[%clk 0:02:22.2]} 15. Qe1 {[%clk
0:02:34.1]} 15... Be7 {[%clk 0:02:19.5]} 16. Bxf5 {[%clk 0:02:30.2]} 16... exf5
{[%clk 0:02:16.1]} 17. Bh4 {[%clk 0:02:30.7]} 17... Re8 {[%clk 0:01:58.9]} 18.
Bxf6 {[%clk 0:02:26.1]} 18... Bxf6 {[%clk 0:01:59.8]} 19. Qf2 {[%clk 0:02:21.6]}
19... b5 {[%clk 0:01:48.6]} 20. Nd3 {[%clk 0:01:58.6]} 20... Be7 {[%clk
0:01:43]} 21. Nc5 {[%clk 0:01:52]} 21... Bc6 {[%clk 0:01:15.3]} 22. a3 {[%clk
0:01:42.2]} 22... Bd6 {[%clk 0:01:14.4]} 23. g3 {[%clk 0:01:32.7]} 23... Qc7
{[%clk 0:01:13.2]} 24. b4 {[%clk 0:01:23.8]} 24... Re7 {[%clk 0:01:02.1]} 25.
Rfe1 {[%clk 0:01:21.3]} 25... Rae8 {[%clk 0:00:48.7]} 26. Ndb3 {[%clk
0:01:13.1]} 26... a4 {[%clk 0:00:36.1]} 27. Nd2 {[%clk 0:01:13.1]} 27... Bxc5
{[%clk 0:00:20.6]} 28. bxc5 {[%clk 0:01:13.4]} 28... Qa5 {[%clk 0:00:17.9]} 29.
Rxe7 {[%clk 0:00:58.3]} 29... Rxe7 {[%clk 0:00:18.8]} 30. Rc1 {[%clk 0:00:54.3]}
30... Re6 {[%clk 0:00:14.4]} 31. Nf3 {[%clk 0:00:50.9]} 31... Bb7 {[%clk
0:00:13]} 32. Ne5 {[%clk 0:00:47.8]} 32... f6 {[%clk 0:00:13.2]} 33. Nd3 {[%clk
0:00:48.2]} 33... Re4 {[%clk 0:00:07.9]} 34. Nb4 {[%clk 0:00:47.5]} 34... Qc7
{[%clk 0:00:08.2]} 35. Re1 {[%clk 0:00:45.6]} 35... Bc6 {[%clk 0:00:08]} 36.
Rxe4 {[%clk 0:00:43.2]} 36... fxe4 {[%clk 0:00:08.4]} 37. f5 {[%clk 0:00:32.5]}
37... g5 {[%clk 0:00:08.4]} 38. g4 {[%clk 0:00:32.9]} 38... Kg7 {[%clk
0:00:04.3]} 39. Qg3 {[%clk 0:00:31.8]} 39... Qb7 {[%clk 0:00:03]} 40. Qd6 {[%clk
0:00:28.5]} 40... Be8 {[%clk 0:00:02.9]} 41. Qxd5 {[%clk 0:00:23.6]} 41... Qb8
{[%clk 0:00:02.7]} 42. Qd6 {[%clk 0:00:20.2]} 42... Qxd6 {[%clk 0:00:03.3]} 43.
cxd6 {[%clk 0:00:21.1]} 43... Kf7 {[%clk 0:00:03.4]} 44. Kf2 {[%clk 0:00:18.4]}
44... Bd7 {[%clk 0:00:02.4]} 45. Ke3 {[%clk 0:00:18.7]} 45... Bc8 {[%clk
0:00:01.6]} 46. Kxe4 {[%clk 0:00:18.1]} 46... Bb7+ {[%clk 0:00:02.5]} 47. d5
{[%clk 0:00:18.6]} 47... Ke8 {[%clk 0:00:02.9]} 48. Kd4 {[%clk 0:00:19]} 48...
Kd7 {[%clk 0:00:03.1]} 49. Kc5 {[%clk 0:00:19.7]} 49... h6 {[%clk 0:00:01.4]}
50. Nc6 {[%clk 0:00:16.7]} 50... Ba8 {[%clk 0:00:01.4]} 51. Nd4 {[%clk
0:00:16.9]} 51... Bb7 {[%clk 0:00:01.4]} 52. Nxb5 {[%clk 0:00:17.2]} 52... Ba6
{[%clk 0:00:01.4]} 53. c4 {[%clk 0:00:17.9]} 53... Bb7 {[%clk 0:00:01.5]} 54.
Nc3 {[%clk 0:00:17.2]} 54... Ba6 {[%clk 0:00:01.8]} 55. Nxa4 {[%clk 0:00:17.4]}
1-0

[Event "Early-Titled-Tuesday-Blitz-March-12-2024"]
[Site "Chess.com"]
[Date "2024.03.12"]
[Round "11"]
[White "electrosaw"]
[Black "KhazhatulyAlikhan"]
[Result "1-0"]
[WhiteElo "2565"]
[BlackElo "2450"]
[TimeControl "180+1"]
[EndTime "10:04:27 PDT"]
[Termination "electrosaw won on time"]

1. e4 {[%clk 0:03:00.9]} 1... c5 {[%clk 0:02:58.1]} 2. Nf3 {[%clk 0:03:00.9]}
2... e6 {[%clk 0:02:58.1]} 3. g3 {[%clk 0:02:58]} 3... Nc6 {[%clk 0:02:52.7]} 4.
Bg2 {[%clk 0:02:58.2]} 4... Nf6 {[%clk 0:02:53]} 5. d3 {[%clk 0:02:57.7]} 5...
d5 {[%clk 0:02:53.4]} 6. Nbd2 {[%clk 0:02:57.6]} 6... dxe4 {[%clk 0:02:46.3]} 7.
dxe4 {[%clk 0:02:58.5]} 7... Qc7 {[%clk 0:02:45]} 8. O-O {[%clk 0:02:58]} 8...
Be7 {[%clk 0:02:44.9]} 9. c3 {[%clk 0:02:58]} 9... O-O {[%clk 0:02:44.5]} 10.
Qc2 {[%clk 0:02:58]} 10... Rd8 {[%clk 0:02:44.1]} 11. a4 {[%clk 0:02:58]} 11...
h6 {[%clk 0:02:41.4]} 12. Re1 {[%clk 0:02:58.2]} 12... e5 {[%clk 0:02:41.8]} 13.
Nc4 {[%clk 0:02:57.4]} 13... Be6 {[%clk 0:02:42.2]} 14. Bf1 {[%clk 0:02:56]}
14... Rd7 {[%clk 0:02:41]} 15. Nh4 {[%clk 0:02:55]} 15... Rad8 {[%clk 0:02:40]}
16. Nf5 {[%clk 0:02:54.1]} 16... Bf8 {[%clk 0:02:22.5]} 17. Nfe3 {[%clk
0:02:48.7]} 17... b6 {[%clk 0:02:10.8]} 18. Na3 {[%clk 0:02:47]} 18... Qb7
{[%clk 0:02:09.7]} 19. Bc4 {[%clk 0:02:45.2]} 19... Bxc4 {[%clk 0:02:02.4]} 20.
Naxc4 {[%clk 0:02:46.1]} 20... a6 {[%clk 0:01:59.3]} 21. a5 {[%clk 0:02:42.2]}
21... b5 {[%clk 0:01:51.9]} 22. Nb6 {[%clk 0:02:42.2]} 22... Rd6 {[%clk
0:01:52.4]} 23. Nbd5 {[%clk 0:02:42.1]} 23... Nxd5 {[%clk 0:01:52.9]} 24. Nxd5
{[%clk 0:02:38.5]} 24... Ne7 {[%clk 0:01:52.8]} 25. Ne3 {[%clk 0:02:17.2]} 25...
c4 {[%clk 0:01:48.3]} 26. b3 {[%clk 0:02:13.4]} 26... cxb3 {[%clk 0:01:47.5]}
27. Qxb3 {[%clk 0:02:14.3]} 27... Qxe4 {[%clk 0:01:46.4]} 28. Ba3 {[%clk
0:02:13.2]} 28... Rd2 {[%clk 0:01:33.5]} 29. Nf1 {[%clk 0:02:07.1]} 29... Re2
{[%clk 0:01:26]} 30. Ne3 {[%clk 0:01:58.8]} 30... Rdd2 {[%clk 0:00:59]} 31. Rxe2
{[%clk 0:01:50.9]} 31... Rxe2 {[%clk 0:00:59.9]} 32. Qd1 {[%clk 0:01:50.3]}
32... Qf3 {[%clk 0:00:56.9]} 33. Qf1 {[%clk 0:01:44.2]} 33... Ng6 {[%clk
0:00:45.1]} 34. Bxf8 {[%clk 0:01:43.3]} 34... Nxf8 {[%clk 0:00:46]} 35. Nd5
{[%clk 0:01:43.1]} 35... Ne6 {[%clk 0:00:34.2]} 36. Qg2 {[%clk 0:01:40.1]} 36...
e4 {[%clk 0:00:15.7]} 37. h4 {[%clk 0:01:20.3]} 37... Qd3 {[%clk 0:00:14.4]} 38.
Ne7+ {[%clk 0:01:00.7]} 38... Kf8 {[%clk 0:00:14.6]} 39. Nf5 {[%clk 0:01:00.8]}
39... Qxc3 {[%clk 0:00:10.8]} 40. Rd1 {[%clk 0:01:00.7]} 40... Re1+ {[%clk
0:00:11.1]} 41. Rxe1 {[%clk 0:01:01.1]} 41... Qxe1+ {[%clk 0:00:12]} 42. Kh2
{[%clk 0:01:01.8]} 42... h5 {[%clk 0:00:10.4]} 43. Ne3 {[%clk 0:01:01.1]} 43...
Qb4 {[%clk 0:00:08.8]} 44. Nd5 {[%clk 0:00:59.9]} 44... Qd4 {[%clk 0:00:07.8]}
45. Ne3 {[%clk 0:00:57.5]} 45... g6 {[%clk 0:00:07.2]} 46. g4 {[%clk 0:00:56.4]}
46... Qe5+ {[%clk 0:00:05.3]} 47. Kg1 {[%clk 0:00:53.8]} 47... Nf4 {[%clk
0:00:05.2]} 48. Qf1 {[%clk 0:00:52]} 48... hxg4 {[%clk 0:00:04.5]} 49. Nxg4
{[%clk 0:00:52.6]} 49... Qh5 {[%clk 0:00:04.7]} 50. Qd1 {[%clk 0:00:51]} 50...
Qxh4 {[%clk 0:00:04]} 51. Qd6+ {[%clk 0:00:49.6]} 51... Kg7 {[%clk 0:00:03.7]}
52. Qxf4 {[%clk 0:00:49.5]} 52... Qe7 {[%clk 0:00:04.6]} 53. Ne3 {[%clk
0:00:48.6]} 53... f5 {[%clk 0:00:03.9]} 54. Nd5 {[%clk 0:00:46.8]} 54... Qe6
{[%clk 0:00:02.6]} 55. Qc7+ {[%clk 0:00:46.7]} 55... Kh6 {[%clk 0:00:03.2]} 56.
Nf4 {[%clk 0:00:42.4]} 56... Qf6 {[%clk 0:00:03.5]} 57. Kf1 {[%clk 0:00:36.6]}
57... Qa1+ {[%clk 0:00:03.7]} 58. Kg2 {[%clk 0:00:36.2]} 58... Qf6 {[%clk
0:00:03.1]} 59. Nd5 {[%clk 0:00:31.3]} 59... Qg5+ {[%clk 0:00:02.5]} 60. Qg3
{[%clk 0:00:31.1]} 60... Qd8 {[%clk 0:00:02.7]} 61. Qf4+ {[%clk 0:00:28.8]}
61... Kg7 {[%clk 0:00:02.9]} 62. Qe5+ {[%clk 0:00:28.5]} 62... Kh6 {[%clk
0:00:03.5]} 63. Ne7 {[%clk 0:00:28.2]} 63... Qf8 {[%clk 0:00:01.3]} 64. Qe6
{[%clk 0:00:23.8]} 1-0

[Event "Early-Titled-Tuesday-Blitz-March-12-2024"]
[Site "Chess.com"]
[Date "2024.03.12"]
[Round "11"]
[White "vasblesk"]
[Black "temus_galaktionov"]
[Result "1-0"]
[WhiteElo "2776"]
[BlackElo "2859"]
[TimeControl "180+1"]
[EndTime "10:04:28 PDT"]
[Termination "vasblesk won by resignation"]

1. d4 {[%clk 0:03:00.9]} 1... c6 {[%clk 0:03:00.9]} 2. c4 {[%clk 0:02:58.4]}
2... g6 {[%clk 0:02:56.1]} 3. Nf3 {[%clk 0:02:58.3]} 3... d6 {[%clk 0:02:57]} 4.
Nc3 {[%clk 0:02:58.3]} 4... Bg7 {[%clk 0:02:54.9]} 5. g3 {[%clk 0:02:58.5]} 5...
Nd7 {[%clk 0:02:55]} 6. Bg2 {[%clk 0:02:59.1]} 6... Ngf6 {[%clk 0:02:55.9]} 7.
O-O {[%clk 0:02:59.7]} 7... O-O {[%clk 0:02:56.8]} 8. e4 {[%clk 0:03:00.2]} 8...
e5 {[%clk 0:02:56.6]} 9. Re1 {[%clk 0:02:59.2]} 9... a5 {[%clk 0:02:50.3]} 10.
h3 {[%clk 0:02:58.1]} 10... exd4 {[%clk 0:02:50.4]} 11. Nxd4 {[%clk 0:02:57.7]}
11... Nc5 {[%clk 0:02:51.3]} 12. Bf4 {[%clk 0:02:57.4]} 12... Nh5 {[%clk
0:02:50.5]} 13. Be3 {[%clk 0:02:57.3]} 13... a4 {[%clk 0:02:50.8]} 14. Qd2
{[%clk 0:02:55.7]} 14... Re8 {[%clk 0:02:48.5]} 15. Rad1 {[%clk 0:02:55]} 15...
Qa5 {[%clk 0:02:48.2]} 16. Nde2 {[%clk 0:02:53]} 16... Rd8 {[%clk 0:02:42.9]}
17. g4 {[%clk 0:02:41]} 17... Nf6 {[%clk 0:02:42.3]} 18. e5 {[%clk 0:02:41.4]}
18... Ne8 {[%clk 0:02:39.4]} 19. exd6 {[%clk 0:02:12]} 19... Rxd6 {[%clk
0:02:40.3]} 20. Qc2 {[%clk 0:02:08.9]} 20... Be6 {[%clk 0:02:38.7]} 21. b3
{[%clk 0:02:04.3]} 21... axb3 {[%clk 0:02:36.6]} 22. axb3 {[%clk 0:02:05.2]}
22... Qb4 {[%clk 0:02:21.4]} 23. Bxc5 {[%clk 0:02:02.3]} 23... Qxc5 {[%clk
0:02:21]} 24. Ne4 {[%clk 0:02:02.4]} 24... Rxd1 {[%clk 0:02:16.8]} 25. Rxd1
{[%clk 0:01:56.5]} 25... Qb4 {[%clk 0:02:10.1]} 26. Nf4 {[%clk 0:01:56.6]} 26...
Nc7 {[%clk 0:02:07.3]} 27. Nd3 {[%clk 0:01:53.9]} 27... Qe7 {[%clk 0:02:03.4]}
28. Ndc5 {[%clk 0:01:51.7]} 28... b6 {[%clk 0:01:57.8]} 29. Na4 {[%clk
0:01:48.6]} 29... Rb8 {[%clk 0:01:54.4]} 30. Nac3 {[%clk 0:01:38.7]} 30... Rd8
{[%clk 0:01:50.4]} 31. Rxd8+ {[%clk 0:01:36.2]} 31... Qxd8 {[%clk 0:01:51.3]}
32. Ne2 {[%clk 0:01:34.7]} 32... c5 {[%clk 0:01:44.3]} 33. Qd2 {[%clk
0:01:33.5]} 33... Qxd2 {[%clk 0:01:43.2]} 34. Nxd2 {[%clk 0:01:34.4]} 34... Bd7
{[%clk 0:01:41.9]} 35. Ne4 {[%clk 0:01:29.8]} 35... Ne6 {[%clk 0:01:40.7]} 36.
N4c3 {[%clk 0:01:28.1]} 36... Nd4 {[%clk 0:01:38.5]} 37. Nxd4 {[%clk 0:01:27.7]}
37... Bxd4 {[%clk 0:01:38.2]} 38. Nd5 {[%clk 0:01:28.1]} 38... b5 {[%clk
0:01:36.5]} 39. Ne7+ {[%clk 0:01:12.7]} 39... Kf8 {[%clk 0:01:34.1]} 40. Nc6
{[%clk 0:01:12.9]} 40... bxc4 {[%clk 0:01:31.5]} 41. bxc4 {[%clk 0:01:12.7]}
41... Bc3 {[%clk 0:01:26.6]} 42. Na7 {[%clk 0:01:10.2]} 42... f5 {[%clk
0:01:24.4]} 43. gxf5 {[%clk 0:01:08.9]} 43... Bxf5 {[%clk 0:01:24.9]} 44. Nb5
{[%clk 0:01:08.2]} 44... Be5 {[%clk 0:01:24.6]} 45. Na7 {[%clk 0:01:06.2]} 45...
Kf7 {[%clk 0:01:22.3]} 46. Nc6 {[%clk 0:01:03]} 46... Bc3 {[%clk 0:01:22.1]} 47.
Bd5+ {[%clk 0:01:01.3]} 47... Kf6 {[%clk 0:01:22.1]} 48. Kg2 {[%clk 0:01:02]}
48... h6 {[%clk 0:01:14.1]} 49. h4 {[%clk 0:00:58.6]} 49... h5 {[%clk
0:01:11.3]} 50. Kg3 {[%clk 0:00:57.4]} 50... Bd3 {[%clk 0:01:07.7]} 51. Kf3
{[%clk 0:00:53.8]} 51... Bd2 {[%clk 0:00:55.8]} 52. Nb8 {[%clk 0:00:44.7]} 52...
Ke7 {[%clk 0:00:47.8]} 53. Nc6+ {[%clk 0:00:44.6]} 53... Kd6 {[%clk 0:00:47.6]}
54. Nd8 {[%clk 0:00:45.1]} 54... Kd7 {[%clk 0:00:33.1]} 55. Ne6 {[%clk
0:00:30.2]} 55... Kd6 {[%clk 0:00:27]} 56. Nd8 {[%clk 0:00:21.6]} 56... Kd7
{[%clk 0:00:14.9]} 57. Ne6 {[%clk 0:00:21.2]} 57... Bb4 {[%clk 0:00:13.6]} 58.
Nf4 {[%clk 0:00:20.5]} 58... Bf5 {[%clk 0:00:13.6]} 59. Be4 {[%clk 0:00:19.8]}
59... Bxe4+ {[%clk 0:00:04.7]} 60. Kxe4 {[%clk 0:00:20]} 60... Be1 {[%clk
0:00:04.8]} 61. Nd3 {[%clk 0:00:20]} 61... Kd6 {[%clk 0:00:04.7]} 62. Nxe1
{[%clk 0:00:19.7]} 1-0

[Event "Early-Titled-Tuesday-Blitz-March-12-2024"]
[Site "Chess.com"]
[Date "2024.03.12"]
[Round "11"]
[White "AttilaTurzo"]
[Black "AlexandraSamaganova"]
[Result "1-0"]
[WhiteElo "2476"]
[BlackElo "2369"]
[TimeControl "180+1"]
[EndTime "10:04:28 PDT"]
[Termination "AttilaTurzo won by resignation"]

1. d4 {[%clk 0:03:00.9]} 1... Nf6 {[%clk 0:02:57.5]} 2. Bf4 {[%clk 0:02:59.7]}
2... e6 {[%clk 0:02:56.6]} 3. Nf3 {[%clk 0:02:58.2]} 3... b6 {[%clk 0:02:55.5]}
4. e3 {[%clk 0:02:53.4]} 4... Bb7 {[%clk 0:02:52.8]} 5. h3 {[%clk 0:02:53.8]}
5... d5 {[%clk 0:02:52.6]} 6. Bd3 {[%clk 0:02:50.2]} 6... Bd6 {[%clk 0:02:52.3]}
7. Nbd2 {[%clk 0:02:49.2]} 7... O-O {[%clk 0:02:51.8]} 8. c3 {[%clk 0:02:48]}
8... c5 {[%clk 0:02:52]} 9. Ne5 {[%clk 0:02:47]} 9... Qc7 {[%clk 0:02:51.6]} 10.
Qf3 {[%clk 0:02:43.1]} 10... Nbd7 {[%clk 0:02:48.3]} 11. Nxd7 {[%clk 0:02:39.2]}
11... Qxd7 {[%clk 0:02:43.7]} 12. O-O {[%clk 0:02:21.5]} 12... Rfe8 {[%clk
0:02:38.9]} 13. Be5 {[%clk 0:02:20.8]} 13... Bxe5 {[%clk 0:01:40.2]} 14. dxe5
{[%clk 0:02:20.4]} 14... d4 {[%clk 0:01:40.5]} 15. Qe2 {[%clk 0:02:08.5]} 15...
dxc3 {[%clk 0:01:26.5]} 16. exf6 {[%clk 0:01:50.2]} 16... cxd2 {[%clk
0:01:26.3]} 17. Bxh7+ {[%clk 0:01:35.9]} 17... Kf8 {[%clk 0:01:09.9]} 18. fxg7+
{[%clk 0:01:26.5]} 18... Kxg7 {[%clk 0:01:07.1]} 19. Bc2 {[%clk 0:01:10.8]}
19... Rg8 {[%clk 0:00:55.8]} 20. Rad1 {[%clk 0:01:04.3]} 20... Rad8 {[%clk
0:00:52]} 21. e4 {[%clk 0:00:54.5]} 21... Kf8 {[%clk 0:00:48]} 22. Kh1 {[%clk
0:00:51.7]} 22... Qd4 {[%clk 0:00:31.2]} 23. b3 {[%clk 0:00:48.8]} 23... Qc3
{[%clk 0:00:26.7]} 24. Bb1 {[%clk 0:00:45.1]} 24... Ke7 {[%clk 0:00:18.8]} 25.
f3 {[%clk 0:00:44.3]} 25... Rd7 {[%clk 0:00:07.6]} 26. f4 {[%clk 0:00:42]} 26...
Rgd8 {[%clk 0:00:05.9]} 27. f5 {[%clk 0:00:40.3]} 27... Rh8 {[%clk 0:00:02]} 28.
Rf3 {[%clk 0:00:34.1]} 28... Qd4 {[%clk 0:00:01.4]} 29. fxe6 {[%clk 0:00:28.4]}
29... fxe6 {[%clk 0:00:01.3]} 30. Bc2 {[%clk 0:00:23.2]} 30... Qe5 {[%clk
0:00:01.5]} 31. Rxd2 {[%clk 0:00:21.2]} 31... Rxd2 {[%clk 0:00:02]} 32. Qxd2
{[%clk 0:00:22.1]} 32... Qa1+ {[%clk 0:00:02.2]} 33. Kh2 {[%clk 0:00:18.1]}
33... Qe5+ {[%clk 0:00:02.7]} 34. Qf4 {[%clk 0:00:17.5]} 34... Qxf4+ {[%clk
0:00:03]} 35. Rxf4 {[%clk 0:00:18]} 35... e5 {[%clk 0:00:03.5]} 36. Rf5 {[%clk
0:00:17.5]} 36... Ke6 {[%clk 0:00:04]} 37. Bd3 {[%clk 0:00:17.5]} 37... Rd8
{[%clk 0:00:03.6]} 38. Bc4+ {[%clk 0:00:17.1]} 38... Kd6 {[%clk 0:00:03.1]} 39.
Rf6+ {[%clk 0:00:17.1]} 39... Kc7 {[%clk 0:00:03.6]} 40. Re6 {[%clk 0:00:16.9]}
40... Rd4 {[%clk 0:00:02.7]} 41. Rxe5 {[%clk 0:00:16.5]} 41... Bxe4 {[%clk
0:00:03.1]} 42. a4 {[%clk 0:00:15.2]} 42... Bc6 {[%clk 0:00:02.9]} 43. Re7+
{[%clk 0:00:14.5]} 43... Kd6 {[%clk 0:00:03.3]} 44. Rxa7 {[%clk 0:00:13.3]}
44... Rd2 {[%clk 0:00:03.6]} 45. Rg7 {[%clk 0:00:12.1]} 45... Ke5 {[%clk
0:00:03.9]} 46. Rg6 {[%clk 0:00:11.7]} 46... Bb7 {[%clk 0:00:03.6]} 47. h4
{[%clk 0:00:10.5]} 47... Kf5 {[%clk 0:00:03.8]} 48. Rg7 {[%clk 0:00:10.2]} 48...
Kf6 {[%clk 0:00:03.9]} 49. Rxb7 {[%clk 0:00:09.2]} 49... Rb2 {[%clk 0:00:03.3]}
50. Rxb6+ {[%clk 0:00:09.5]} 50... Kf5 {[%clk 0:00:02.6]} 51. Rb5 {[%clk
0:00:09.8]} 51... Ke4 {[%clk 0:00:02.8]} 52. Rxc5 {[%clk 0:00:10.1]} 52... Kd4
{[%clk 0:00:02.9]} 53. Rd5+ {[%clk 0:00:10.5]} 53... Ke4 {[%clk 0:00:03.1]} 54.
h5 {[%clk 0:00:10.5]} 54... Kf4 {[%clk 0:00:03.5]} 55. h6 {[%clk 0:00:10.8]}
55... Re2 {[%clk 0:00:03.7]} 56. h7 {[%clk 0:00:10.7]} 56... Re7 {[%clk
0:00:04.6]} 57. Rh5 {[%clk 0:00:10]} 57... Rxh7 {[%clk 0:00:05.5]} 58. Rxh7
{[%clk 0:00:09.8]} 58... Kg5 {[%clk 0:00:06]} 59. Re7 {[%clk 0:00:08.6]} 1-0